[Event "Baltic Zonal III Stage 2018"]
[Site "Liepaja"]
[Date "2018.07.09"]
[Round "1"]
[White "Chukavin, Kirill"]
[Black "Ladva, Ottomar"]
[Result "0-1"]
[ECO "B33"]
[WhiteElo "2303"]
[BlackElo "2498"]
[Annotator "ChessBase"]
[PlyCount "108"]
[EventDate "2018.07.09"]
[EventType "swiss"]
[EventCountry "LAT"]
[SourceTitle "playchess.com"]
[Source "ChessBase"]
[SourceQuality "1"]
[TimeControl "5400+30"]

1. e4 {[%emt 0:00:00]} c5 {[%emt 0:00:00]} 2. Nf3 {[%emt 0:00:00]} e6 {[%emt 0:00:00]} 3. d4 {[%emt 0:00:07]} cxd4 {[%emt 0:00:00]} 4. Nxd4 {[%emt 0:00:10]} Nf6 {[%emt 0:00:05]} 5. Nc3 {[%emt 0:00:28]} Nc6 {[%emt 0:00:05]} 6. Ndb5 {[%emt 0:00:48]} d6 {[%emt 0:00:06]} 7. Bf4 {[%emt 0:01:17]} e5 {[%emt 0:00:02]} 8. Bg5 {[%emt 0:00:07]} a6 {[%emt 0:00:05]} 9. Na3 {[%emt 0:00:55]} b5 {[%emt 0:00:02]} 10. Nd5 {[%emt 0:00:48]} Be7 {[%emt 0:00:12]} 11. Bxf6 {[%emt 0:00:35]} Bxf6 {[%emt 0:00:02]} 12. c4 {[%emt 0:01:27]} bxc4 {[%emt 0:00:06]} 13. Nxc4 {[%emt 0:07:12]} O-O {[%emt 0:00:04]} 14. Ncb6 {[%emt 0:12:35]} Rb8 {[%emt 0:00:43]} 15. Nxc8 {[%emt 0:06:21]} Qa5+ {[%emt 0:02:42]} 16. Qd2 {[%emt 0:08:35]} Qxd2+ {[%emt 0:00:44]} 17. Kxd2 {[%emt 0:00:07]} Rfxc8 {[%emt 0:01:04]} 18. Nxf6+ {[%emt 0:07:47]} gxf6 {[%emt 0:00:04]} 19. b3 {[%emt 0:00:28]} Nd4 {[%emt 0:02:31]} 20. Bd3 {[%emt 0:15:42]} Rc5 {[%emt 0:11:07]} 21. Rhc1 {[%emt 0:01:52]} Ra5 {[%emt 0:00:10]} 22. Kc3 {[%emt 0:04:14]} f5 {[%emt 0:05:47]} 23. exf5 {[%emt 0:02:00]} d5 {[%emt 0:03:07]} 24. f3 {[%emt 0:05:34]} Kg7 {[%emt 0:03:10]} 25. Kb2 {[%emt 0:02:40]} Kf6 {[%emt 0:03:05]} 26. Rc7 {[%emt 0:00:42]} Rg8 {[%emt 0:00:38]} 27. a4 {[%emt 0:03:02]} Rxg2+ {[%emt 0:01:38]} 28. Kc3 {[%emt 0:02:01]} Nb5+ {[%emt 0:03:03]} 29. Bxb5 {[%emt 0:01:23]} axb5 {[%emt 0:00:03]} 30. Kb4 {[%emt 0:00:41]} Ra8 {[%emt 0:00:10]} 31. a5 {[%emt 0:00:44]} Rf2 {[%emt 0:07:17]} 32. Kxb5 {[%emt 0:04:58]} Rxf3 {[%emt 0:01:00]} 33. b4 {[%emt 0:00:13]} e4 {[%emt 0:02:35]} 34. a6 {[%emt 0:02:03]} e3 {[%emt 0:01:11]} 35. Kc6 {[%emt 0:02:45]} e2 {[%emt 0:01:29]} 36. Kb7 {[%emt 0:05:10]} Rf1 {[%emt 0:02:11]} 37. Rcc1 {[%emt 0:00:55]} Rxc1 {[%emt 0:00:09]} 38. Rxc1 {[%emt 0:00:03]} Re8 {[%emt 0:00:34]} 39. Re1 {[%emt 0:01:56]} d4 {[%emt 0:00:11]} 40. b5 {[%emt 0:00:34]} d3 {[%emt 0:00:07]} 41. a7 {[%emt 0:00:45]} Re7+ {[%emt 0:01:33]} 42. Kb6 {[%emt 0:00:41]} Rxa7 {[%emt 0:01:59]} 43. Kxa7 {[%emt 0:00:09]} d2 {[%emt 0:00:05]} 44. Rxe2 {[%emt 0:00:15]} d1=Q {[%emt 0:00:07]} 45. Ra2 {[%emt 0:00:39]} Qd7+ {[%emt 0:00:31]} 46. Ka6 {[%emt 0:00:00]} Qd5 {[%emt 0:00:19]} 47. Rc2 {[%emt 0:01:28]} Qa8+ {[%emt 0:00:48]} 48. Kb6 {[%emt 0:00:02]} Kxf5 {[%emt 0:00:33]} 49. Rc7 Ke6 50. Kc5 Qd5+ 51. Kb6 f5 52. Rxh7 f4 53. Rh6+ Kf7 54. Rh7+ Kg6 0-1

[Event "Baltic Zonal III Stage 2018"]
[Site "Liepaja"]
[Date "2018.07.09"]
[Round "1"]
[White "Pedoson, Georg Aleksander"]
[Black "Pultinevicius, Paulius"]
[Result "0-1"]
[ECO "A34"]
[WhiteElo "2176"]
[BlackElo "2422"]
[Annotator "NA"]
[PlyCount "48"]
[EventDate "2018.07.09"]
[EventType "swiss"]
[EventCountry "LAT"]
[SourceTitle "playchess.com"]
[Source "ChessBase"]
[SourceQuality "1"]
[TimeControl "5400+30"]

1. c4 {[%emt 0:00:00]} Nf6 {[%emt 0:00:00]} 2. Nc3 {[%emt 0:00:00]} c5 {[%emt 0:00:00]} 3. g3 {[%emt 0:00:15]} d5 {[%emt 0:00:00]} 4. cxd5 {[%emt 0:00:07]} Nxd5 {[%emt 0:00:01]} 5. Bg2 {[%emt 0:01:36]} Nc7 {[%emt 0:00:06]} 6. Nf3 {[%emt 0:00:34]} Nc6 {[%emt 0:00:08]} 7. O-O {[%emt 0:01:04]} e5 {[%emt 0:00:25]} 8. d3 {[%emt 0:01:16]} Be7 {[%emt 0:00:38]} 9. Nd2 {[%emt 0:04:54]} O-O {[%emt 0:07:38]} 10. Nc4 {[%emt 0:02:07]} f6 {[%emt 0:02:30]} 11. f4 {[%emt 0:04:18]} exf4 {[%emt 0:08:35]} 12. Bxf4 {[%emt 0:01:52]} Ne6 {[%emt 0:01:30]} 13. Bd2 {[%emt 0:05:50]} Re8 {[%emt 0:01:25]} 14. a4 {[%emt 0:07:13]} Bd7 {[%emt 0:10:41]} 15. Nd5 {[%emt 0:05:56]} Bf8 {[%emt 0:02:22]} 16. Bc3 {[%emt 0:09:04]} Nb4 {[%emt 0:12:54]} 17. Bxf6 {[%emt 0:13:46]} gxf6 {[%emt 0:02:36]} 18. Nxf6+ {[%emt 0:00:37]} Kh8 {[%emt 0:13:10]} 19. Ne5 {[%emt 0:08:12]} Re7 {[%emt 0:00:06]} 20. e3 {[%emt 0:03:27]} Be8 {[%emt 0:03:10]} 21. Qg4 {[%emt 0:02:35]} Bg7 {[%emt 0:03:46]} 22. Be4 {[%emt 0:09:40]} Nf8 {[%emt 0:03:16]} 23. Nxh7 {[%emt 0:01:11]} Nxh7 {[%emt 0:03:32]} 24. Qh4 {[%emt 0:00:09]} Bxe5 {[%emt 0:02:22]} 0-1

[Event "Baltic Zonal III Stage 2018"]
[Site "Liepaja"]
[Date "2018.07.10"]
[Round "2"]
[White "Kantans, Toms"]
[Black "Samolins, Vitalijs"]
[Result "0-1"]
[ECO "C78"]
[WhiteElo "2529"]
[BlackElo "2400"]
[Annotator "ChessBase"]
[PlyCount "100"]
[EventDate "2018.07.09"]
[EventType "swiss"]
[EventCountry "LAT"]
[SourceTitle "playchess.com"]
[Source "ChessBase"]
[SourceQuality "1"]
[TimeControl "5400+30"]

1. e4 {[%emt 0:00:00]} e5 {[%emt 0:00:00]} 2. Nf3 {[%emt 0:00:00]} Nc6 {[%emt 0:00:00]} 3. Bb5 {[%emt 0:00:05]} a6 {[%emt 0:00:00]} 4. Ba4 {[%emt 0:00:07]} Nf6 {[%emt 0:00:12]} 5. O-O {[%emt 0:00:08]} Bc5 {[%emt 0:00:21]} 6. Re1 {[%emt 0:03:41]} O-O {[%emt 0:14:28]} 7. c3 {[%emt 0:01:54]} b5 {[%emt 0:01:32]} 8. Bb3 {[%emt 0:00:16]} d6 {[%emt 0:00:56]} 9. a4 {[%emt 0:01:28]} Bb7 {[%emt 0:05:33]} 10. d4 {[%emt 0:00:33]} Ba7 {[%emt 0:02:57]} 11. Bg5 {[%emt 0:02:09]} h6 {[%emt 0:01:36]} 12. Bh4 {[%emt 0:15:59]} exd4 {[%emt 0:05:03]} 13. axb5 {[%emt 0:07:54]} axb5 {[%emt 0:01:18]} 14. cxd4 {[%emt 0:00:05]} g5 {[%emt 0:21:01]} 15. Bg3 {[%emt 0:17:54]} Bb6 {[%emt 0:17:32]} 16. Rxa8 {[%emt 0:01:07]} Bxa8 {[%emt 0:00:03]} 17. d5 {[%emt 0:07:12]} Na5 {[%emt 0:03:23]} 18. Bc2 {[%emt 0:00:09]} Re8 19. Nbd2 {[%emt 0:04:06]} Nh5 {[%emt 0:06:55]} 20. b4 {[%emt 0:02:47]} Nc4 {[%emt 0:00:25]} 21. Nxc4 {[%emt 0:00:05]} bxc4 {[%emt 0:00:02]} 22. Ba4 {[%emt 0:00:12]} Re7 {[%emt 0:02:39]} 23. Qc1 {[%emt 0:12:14]} f5 {[%emt 0:01:55]} 24. exf5 {[%emt 0:07:36]} Rxe1+ {[%emt 0:02:00]} 25. Nxe1 {[%emt 0:00:10]} Nxg3 {[%emt 0:00:17]} 26. hxg3 {[%emt 0:00:05]} Bxd5 {[%emt 0:00:03]} 27. Bb5 {[%emt 0:01:45]} Qf6 {[%emt 0:00:10]} 28. Bxc4 {[%emt 0:00:05]} Qxf5 {[%emt 0:00:07]} 29. Nd3 {[%emt 0:04:37]} h5 {[%emt 0:05:57]} 30. Qc2 {[%emt 0:03:27]} Bxf2+ {[%emt 0:01:01]} 31. Qxf2 {[%emt 0:01:33]} Qxf2+ {[%emt 0:00:04]} 32. Nxf2 {[%emt 0:00:08]} Bxc4 {[%emt 0:00:05]} 33. Ne4 {[%emt 0:00:05]} Kf7 {[%emt 0:06:34]} 34. Nxg5+ {[%emt 0:00:17]} Kf6 {[%emt 0:00:02]} 35. Nh3 {[%emt 0:06:30]} Ke5 {[%emt 0:01:01]} 36. Nf4 {[%emt 0:00:21]} Bf7 {[%emt 0:00:06]} 37. Kf2 {[%emt 0:00:50]} Kd4 {[%emt 0:00:22]} 38. g4 {[%emt 0:00:13]} hxg4 {[%emt 0:00:23]} 39. Kg3 {[%emt 0:00:01]} Ke3 {[%emt 0:02:22]} 40. Kxg4 {[%emt 0:00:44]} d5 {[%emt 0:00:02]} 41. Kf5 {[%emt 0:01:25]} d4 {[%emt 0:00:03]} 42. g4 {[%emt 0:00:27]} d3 {[%emt 0:00:18]} 43. Ng2+ {[%emt 0:00:35]} Kf2 {[%emt 0:00:47]} 44. Nf4 {[%emt 0:00:05]} Ke3 {[%emt 0:01:40]} 45. Ng2+ {[%emt 0:00:01]} Kf2 {[%emt 0:00:10]} 46. Nf4 {[%emt 0:00:04]} d2 {[%emt 0:00:12]} 47. Nd3+ {[%emt 0:00:04]} Ke3 {[%emt 0:00:32]} 48. Nb2 {[%emt 0:00:02]} Kd4 {[%emt 0:00:48]} 49. g5 {[%emt 0:00:40]} Bb3 {[%emt 0:00:13]} 50. g6 {[%emt 0:00:05] Ke5+} Kc3 {[%emt 0:00:10]} 0-1

[Event "Baltic Zonal III Stage 2018"]
[Site "Liepaja"]
[Date "2018.07.10"]
[Round "2"]
[White "Kanep, Meelis"]
[Black "Kulaots, Kaido"]
[Result "1/2-1/2"]
[ECO "D78"]
[WhiteElo "2440"]
[BlackElo "2555"]
[Annotator "ChessBase"]
[PlyCount "31"]
[EventDate "2018.07.09"]
[EventType "swiss"]
[EventCountry "LAT"]
[SourceTitle "playchess.com"]
[Source "ChessBase"]
[SourceQuality "1"]
[TimeControl "5400+30"]

1. Nf3 {[%emt 0:00:22]} Nf6 {[%emt 0:00:01]} 2. g3 {[%emt 0:00:16]} g6 {[%emt 0:00:20]} 3. Bg2 {[%emt 0:00:05]} Bg7 {[%emt 0:00:05]} 4. d4 {[%emt 0:00:21]} d5 {[%emt 0:01:43]} 5. O-O {[%emt 0:00:24]} O-O {[%emt 0:00:24]} 6. c4 {[%emt 0:00:16]} c6 {[%emt 0:00:43]} 7. Qa4 {[%emt 0:01:24]} Nfd7 {[%emt 0:02:54]} 8. cxd5 {[%emt 0:01:19]} Nb6 {[%emt 0:01:27]} 9. Qd1 {[%emt 0:00:07]} cxd5 {[%emt 0:00:08]} 10. Nc3 {[%emt 0:00:33]} Nc6 {[%emt 0:00:36]} 11. e3 {[%emt 0:04:23]} Bf5 {[%emt 0:01:32]} 12. b3 {[%emt 0:01:58]} Rc8 {[%emt 0:02:29]} 13. Bb2 {[%emt 0:02:31]} Qd7 {[%emt 0:00:32]} 14. Qe2 {[%emt 0:01:51]} Bh3 {[%emt 0:00:44]} 15. Rfd1 {[%emt 0:06:10]} Bxg2 {[%emt 0:00:33]} 16. Kxg2 {[%emt 0:00:09]} 1/2-1/2

[Event "Baltic Zonal III Stage 2018"]
[Site "Liepaja"]
[Date "2018.07.10"]
[Round "2"]
[White "Pultinevicius, Paulius"]
[Black "Kveinys, Aloyzas"]
[Result "1-0"]
[ECO "D45"]
[WhiteElo "2422"]
[BlackElo "2537"]
[Annotator "ChessBase"]
[PlyCount "77"]
[EventDate "2018.07.09"]
[EventType "swiss"]
[EventCountry "LAT"]
[SourceTitle "playchess.com"]
[Source "ChessBase"]
[SourceQuality "1"]
[TimeControl "5400+30"]

1. d4 {[%emt 0:00:00]} Nf6 {[%emt 0:00:38]} 2. c4 {[%emt 0:00:00]} e6 {[%emt 0:00:28]} 3. Nf3 {[%emt 0:00:00]} d5 {[%emt 0:00:17]} 4. Nc3 {[%emt 0:00:00]} c6 {[%emt 0:00:19]} 5. e3 {[%emt 0:01:01]} Nbd7 {[%emt 0:00:13]} 6. Qc2 {[%emt 0:00:10]} a6 {[%emt 0:00:48]} 7. b3 {[%emt 0:02:30]} c5 {[%emt 0:04:42]} 8. cxd5 exd5 {[%emt 0:00:16]} 9. dxc5 {[%emt 0:08:07]} Nxc5 {[%emt 0:02:29]} 10. Bb2 {[%emt 0:00:08]} Be6 {[%emt 0:00:53]} 11. Be2 {[%emt 0:01:29]} Rc8 {[%emt 0:01:51]} 12. O-O {[%emt 0:04:26]} Bd6 {[%emt 0:03:45]} 13. Rac1 {[%emt 0:02:04]} O-O {[%emt 0:00:27]} 14. Qb1 {[%emt 0:02:31]} Qe7 {[%emt 0:03:15]} 15. Rfd1 {[%emt 0:04:22]} Rfd8 {[%emt 0:00:25]} 16. Ng5 {[%emt 0:17:08]} h6 {[%emt 0:08:07]} 17. Nf3 {[%emt 0:09:19]} Nfe4 {[%emt 0:09:12]} 18. Nxe4 {[%emt 0:01:12]} dxe4 {[%emt 0:00:23]} 19. Nd4 {[%emt 0:00:55]} Bd7 {[%emt 0:00:41]} 20. Rd2 {[%emt 0:01:56]} Re8 {[%emt 0:02:17]} 21. Rcd1 {[%emt 0:05:24]} Bb8 {[%emt 0:05:04]} 22. Qa1 {[%emt 0:00:28]} Qg5 {[%emt 0:01:33]} 23. Nc2 {[%emt 0:08:34]} Be6 {[%emt 0:09:13]} 24. Ne1 {[%emt 0:02:14]} h5 {[%emt 0:10:52]} 25. Rc2 {[%emt 0:07:06]} b6 {[%emt 0:14:56]} 26. Rd4 {[%emt 0:04:01]} a5 {[%emt 0:01:25]} 27. Qd1 {[%emt 0:01:19]} h4 {[%emt 0:00:20]} 28. Bc4 {[%emt 0:02:12]} Bxc4 {[%emt 0:02:54]} 29. Rcxc4 {[%emt 0:00:47]} Be5 {[%emt 0:01:07]} 30. Rd5 {[%emt 0:02:33]} Rcd8 {[%emt 0:05:52]} 31. Rcd4 {[%emt 0:01:28]} Rxd5 {[%emt 0:02:35]} 32. Rxd5 {[%emt 0:00:05]} Nd3 {[%emt 0:01:50]} 33. Nxd3 {[%emt 0:02:19]} Bxh2+ {[%emt 0:00:05]} 34. Kxh2 {[%emt 0:00:08]} Qxd5 {[%emt 0:00:01]} 35. Qg4 {[%emt 0:00:08]} Qd6+ {[%emt 0:02:25]} 36. Nf4 {[%emt 0:00:12]} f6 {[%emt 0:00:19]} 37. Bd4 {[%emt 0:00:31]} g5 {[%emt 0:00:50]} 38. Kg1 {[%emt 0:00:38]} Rf8 {[%emt 0:01:21]} 39. Nh5 {[%emt 0:00:21]} 1-0

[Event "Baltic Zonal III Stage 2018"]
[Site "Liepaja"]
[Date "2018.07.10"]
[Round "2"]
[White "Seeman, Tarvo"]
[Black "Haavamae, Henrik"]
[Result "1-0"]
[ECO "A35"]
[WhiteElo "2414"]
[BlackElo "2185"]
[Annotator "ChessBase"]
[PlyCount "137"]
[EventDate "2018.07.09"]
[EventType "swiss"]
[EventCountry "LAT"]
[SourceTitle "playchess.com"]
[Source "ChessBase"]
[SourceQuality "1"]
[TimeControl "5400+30"]

1. Nf3 {[%emt 0:00:00]} c5 {[%emt 0:00:02]} 2. c4 {[%emt 0:00:31]} Nc6 {[%emt 0:00:15]} 3. Nc3 {[%emt 0:00:06]} Nf6 {[%emt 0:01:11]} 4. d4 {[%emt 0:02:39]} cxd4 {[%emt 0:05:09]} 5. Nxd4 {[%emt 0:00:16]} g6 {[%emt 0:06:05]} 6. e4 {[%emt 0:00:45]} d6 {[%emt 0:02:11]} 7. Be2 {[%emt 0:00:20]} Bg7 {[%emt 0:00:25]} 8. Be3 {[%emt 0:00:11]} O-O {[%emt 0:02:41]} 9. O-O {[%emt 0:00:10]} Bd7 {[%emt 0:03:37]} 10. Qd2 {[%emt 0:00:43]} Ng4 {[%emt 0:08:06]} 11. Bxg4 {[%emt 0:01:07]} Bxg4 {[%emt 0:00:21]} 12. Rac1 {[%emt 0:01:08]} Re8 {[%emt 0:06:03]} 13. h3 {[%emt 0:07:39]} Bd7 {[%emt 0:01:50]} 14. Rfd1 {[%emt 0:00:20]} Rc8 {[%emt 0:04:33]} 15. b3 {[%emt 0:01:53]} Qa5 {[%emt 0:03:05]} 16. Nde2 {[%emt 0:02:53]} Rcd8 {[%emt 0:03:40]} 17. Nb5 {[%emt 0:07:40]} Qxd2 {[%emt 0:01:45]} 18. Rxd2 {[%emt 0:00:09]} b6 {[%emt 0:01:22]} 19. Nc7 {[%emt 0:05:31]} Rf8 {[%emt 0:00:14]} 20. Nd4 {[%emt 0:00:48]} Nxd4 {[%emt 0:12:55]} 21. Bxd4 {[%emt 0:00:10]} Bc6 {[%emt 0:05:20]} 22. Nd5 {[%emt 0:01:36]} Rfe8 {[%emt 0:05:26]} 23. Bxg7 {[%emt 0:00:43]} Kxg7 {[%emt 0:00:10]} 24. f3 {[%emt 0:01:45]} Rc8 {[%emt 0:01:37]} 25. Ne3 {[%emt 0:03:11]} Rc7 {[%emt 0:01:58]} 26. Kf2 {[%emt 0:01:17]} Rec8 {[%emt 0:01:04]} 27. h4 {[%emt 0:00:31]} Kf8 {[%emt 0:05:26]} 28. g4 {[%emt 0:04:14]} b5 {[%emt 0:01:05]} 29. cxb5 {[%emt 0:02:17]} Bxb5 {[%emt 0:00:14]} 30. Rxc7 {[%emt 0:00:12]} Rxc7 {[%emt 0:00:06]} 31. g5 {[%emt 0:00:16]} Ke8 {[%emt 0:04:46]} 32. f4 {[%emt 0:03:44]} Rc1 {[%emt 0:01:21]} 33. e5 {[%emt 0:01:37]} dxe5 {[%emt 0:01:19]} 34. fxe5 {[%emt 0:00:08]} Rh1 {[%emt 0:02:47]} 35. Nd5 {[%emt 0:07:08]} Rh2+ {[%emt 0:04:51]} 36. Ke3 {[%emt 0:02:13]} Rh3+ {[%emt 0:00:33]} 37. Kf2 {[%emt 0:01:47]} Rh2+ {[%emt 0:00:11]} 38. Ke3 {[%emt 0:00:04]} Rh3+ {[%emt 0:00:05]} 39. Kd4 {[%emt 0:05:57]} Bc6 {[%emt 0:02:48]} 40. Nc7+ {[%emt 0:03:50]} Kd7 {[%emt 0:00:08]} 41. Na6 {[%emt 0:00:07]} Bh1 {[%emt 0:01:22]} 42. Kc5+ {[%emt 0:03:47]} Ke6 {[%emt 0:00:25]} 43. Nc7+ {[%emt 0:00:11]} Kxe5 {[%emt 0:00:18]} 44. Rd7 {[%emt 0:01:08]} Rxh4 {[%emt 0:00:19]} 45. Rxe7+ {[%emt 0:00:40]} Kf5 {[%emt 0:00:12]} 46. Rxf7+ {[%emt 0:00:10]} Kxg5 {[%emt 0:00:24]} 47. Ne6+ {[%emt 0:00:17]} Kg4 {[%emt 0:00:23]} 48. Rxa7 {[%emt 0:00:46]} Rh5+ {[%emt 0:01:11]} 49. Kb4 {[%emt 0:00:33]} Be4 {[%emt 0:02:05]} 50. Nc5 {[%emt 0:00:38]} Bd5 {[%emt 0:00:55]} 51. a4 {[%emt 0:01:47]} Kh3 {[%emt 0:00:19]} 52. Rd7 {[%emt 0:00:34]} h6 {[%emt 0:00:49]} 53. a5 {[%emt 0:01:12]} Rf5 {[%emt 0:00:30]} 54. Rd6 {[%emt 0:00:51]} g5 {[%emt 0:00:31]} 55. Rxh6+ {[%emt 0:00:15]} Kg3 {[%emt 0:00:16]} 56. a6 {[%emt 0:02:06]} g4 {[%emt 0:00:15]} 57. Rd6 {[%emt 0:06:06]} Kf4 {[%emt 0:00:50]} 58. a7 {[%emt 0:00:28]} Bf3 {[%emt 0:00:35]} 59. Rd3 {[%emt 0:00:57]} Bc6 {[%emt 0:00:34]} 60. Rc3 {[%emt 0:03:41]} Bd5 {[%emt 0:00:22]} 61. Ne6+ {[%emt 0:03:58]} Ke4 {[%emt 0:00:12]} 62. Rc4+ {[%emt 0:02:52]} Ke5 {[%emt 0:00:25]} 63. Nc7 {[%emt 0:02:43]} Bf3 {[%emt 0:01:00]} 64. Rxg4 {[%emt 0:00:33]} Rf8 {[%emt 0:00:23]} 65. Rg3 {[%emt 0:01:25]} Bb7 {[%emt 0:00:31]} 66. Rg6 {[%emt 0:01:04]} Rc8 {[%emt 0:00:25]} 67. Nb5 {[%emt 0:00:44]} Be4 {[%emt 0:00:40]} 68. Rb6 {[%emt 0:00:22]} Ra8 {[%emt 0:00:31]} 69. Rb8 {[%emt 0:00:13]} 1-0

[Event "Baltic Zonal III Stage 2018"]
[Site "Liepaja"]
[Date "2018.07.10"]
[Round "2"]
[White "Berzinsh, Roland"]
[Black "Pedoson, Georg Aleksander"]
[Result "0-1"]
[ECO "C24"]
[WhiteElo "2410"]
[BlackElo "2176"]
[Annotator "NA"]
[PlyCount "44"]
[EventDate "2018.07.09"]
[EventType "swiss"]
[EventCountry "LAT"]
[SourceTitle "playchess.com"]
[Source "ChessBase"]
[SourceQuality "1"]
[TimeControl "5400+30"]

1. e4 {[%emt 0:09:03]} e5 {[%emt 0:00:00]} 2. Bc4 {[%emt 0:00:21]} Nf6 {[%emt 0:09:00]} 3. d3 {[%emt 0:00:21]} c6 {[%emt 0:02:53]} 4. Nf3 {[%emt 0:00:09]} d5 {[%emt 0:02:41]} 5. Bb3 {[%emt 0:00:17]} Bd6 {[%emt 0:02:21]} 6. Nc3 {[%emt 0:00:16]} O-O {[%emt 0:07:02]} 7. exd5 {[%emt 0:07:28]} cxd5 {[%emt 0:02:35]} 8. Bxd5 {[%emt 0:00:50]} Nxd5 {[%emt 0:01:28]} 9. Nxd5 {[%emt 0:00:10]} f5 {[%emt 0:00:29]} 10. O-O {[%emt 0:01:35]} Nc6 {[%emt 0:00:39]} 11. c4 {[%emt 0:00:55]} h6 {[%emt 0:03:11]} 12. Re1 {[%emt 0:13:09]} Be6 {[%emt 0:05:55]} 13. Bd2 {[%emt 0:10:14]} Qd7 {[%emt 0:05:35]} 14. Bc3 {[%emt 0:03:46]} Rae8 {[%emt 0:00:40]} 15. Re2 {[%emt 0:12:18]} Bf7 {[%emt 0:04:34]} 16. Qb3 {[%emt 0:08:03]} Kh7 {[%emt 0:04:06]} 17. Re3 {[%emt 0:13:29]} Bh5 {[%emt 0:05:04]} 18. Qc2 {[%emt 0:00:16]} f4 {[%emt 0:03:10]} 19. Ree1 {[%emt 0:00:05]} Bxf3 {[%emt 0:00:41]} 20. gxf3 {[%emt 0:00:09]} Nd4 {[%emt 0:13:33]} 21. Bxd4 {[%emt 0:01:00]} exd4 {[%emt 0:00:03]} 22. Re4 {[%emt 0:03:15]} Qh3 {[%emt 0:00:46]} 0-1

[Event "Baltic Zonal III Stage 2018"]
[Site "Liepaja"]
[Date "2018.07.10"]
[Round "2"]
[White "Klabis, Rokas"]
[Black "Laurusas, Tomas"]
[Result "0-1"]
[ECO "B23"]
[WhiteElo "2347"]
[BlackElo "2465"]
[Annotator "ChessBase"]
[PlyCount "104"]
[EventDate "2018.07.09"]
[EventType "swiss"]
[EventCountry "LAT"]
[SourceTitle "playchess.com"]
[Source "ChessBase"]
[SourceQuality "1"]
[TimeControl "5400+30"]

1. e4 {[%emt 0:00:00]} c5 {[%emt 0:00:00]} 2. Nc3 {[%emt 0:00:00]} e6 {[%emt 0:00:00]} 3. g3 {[%emt 0:00:00]} a6 {[%emt 0:00:00]} 4. Bg2 {[%emt 0:00:55]} b5 {[%emt 0:00:00]} 5. Nf3 {[%emt 0:04:18]} Bb7 {[%emt 0:00:10]} 6. d3 {[%emt 0:00:06]} d6 {[%emt 0:00:13]} 7. O-O {[%emt 0:00:39]} Nf6 {[%emt 0:00:08]} 8. Re1 {[%emt 0:05:35]} b4 {[%emt 0:05:15]} 9. Ne2 {[%emt 0:08:01]} Be7 {[%emt 0:05:02]} 10. a3 {[%emt 0:03:04]} a5 {[%emt 0:03:52]} 11. h3 {[%emt 0:03:49]} O-O {[%emt 0:00:28]} 12. g4 {[%emt 0:02:06]} Nc6 {[%emt 0:00:42]} 13. Ng3 {[%emt 0:02:09]} Nd7 {[%emt 0:04:20]} 14. Be3 {[%emt 0:13:09]} Nb6 {[%emt 0:06:30]} 15. Qc1 {[%emt 0:07:15]} Rc8 {[%emt 0:08:08]} 16. Nh5 {[%emt 0:07:23]} g6 {[%emt 0:00:34]} 17. Ng3 {[%emt 0:00:03]} e5 {[%emt 0:05:54]} 18. c4 {[%emt 0:09:18]} bxc3 {[%emt 0:01:33]} 19. bxc3 {[%emt 0:00:04]} Ba6 {[%emt 0:02:05]} 20. c4 {[%emt 0:00:55]} Rb8 {[%emt 0:04:13]} 21. Bh6 {[%emt 0:08:10]} Re8 {[%emt 0:00:34]} 22. Ne2 {[%emt 0:00:05]} Nd4 {[%emt 0:00:41]} 23. Nfxd4 {[%emt 0:00:22]} cxd4 {[%emt 0:00:07]} 24. Bd2 {[%emt 0:01:10]} Na4 {[%emt 0:01:29]} 25. Rb1 {[%emt 0:03:47]} Qc7 {[%emt 0:02:45]} 26. Qc2 {[%emt 0:01:21]} Nc5 {[%emt 0:00:05]} 27. Bf3 {[%emt 0:02:27]} Rb7 {[%emt 0:01:43]} 28. Rxb7 {[%emt 0:00:45]} Bxb7 {[%emt 0:00:01]} 29. Rb1 {[%emt 0:10:52]} Bc6 {[%emt 0:00:05]} 30. Nc1 {[%emt 0:00:03]} Ba4 {[%emt 0:06:09]} 31. Qb2 {[%emt 0:00:04]} Ra8 {[%emt 0:00:13]} 32. Kf1 {[%emt 0:03:01]} Bd8 {[%emt 0:02:29]} 33. Ke1 {[%emt 0:00:20]} Qe7 {[%emt 0:00:38]} 34. g5 {[%emt 0:01:29]} f6 {[%emt 0:03:31]} 35. Bd1 {[%emt 0:02:04]} Bd7 {[%emt 0:00:44]} 36. h4 {[%emt 0:00:16]} f5 {[%emt 0:02:55]} 37. Bc2 {[%emt 0:00:42]} Qe6 {[%emt 0:00:22]} 38. Nb3 {[%emt 0:00:21]} Na4 {[%emt 0:01:08]} 39. exf5 {[%emt 0:01:36]} Qxf5 {[%emt 0:00:15]} 40. Nxd4 {[%emt 0:00:43]} exd4 {[%emt 0:01:02]} 41. Qxd4 {[%emt 0:00:17]} Qe5+ {[%emt 0:05:37]} 42. Qxe5 {[%emt 0:00:04]} dxe5 {[%emt 0:00:04]} 43. d4 {[%emt 0:00:02]} exd4 {[%emt 0:01:38]} 44. Be4 {[%emt 0:00:04]} Rc8 {[%emt 0:00:40]} 45. Bb7 {[%emt 0:00:23]} Rc5 {[%emt 0:01:01]} 46. Bd5+ {[%emt 0:00:04]} Kf8 {[%emt 0:00:16]} 47. Bf4 {[%emt 0:00:20]} Bc7 {[%emt 0:00:47]} 48. Rb7 {[%emt 0:00:54]} Bxf4 {[%emt 0:00:06]} 49. Rxd7 {[%emt 0:00:03]} Rc7 {[%emt 0:00:07]} 50. Rd8+ {[%emt 0:00:06]} Ke7 {[%emt 0:00:06]} 51. Rh8 {[%emt 0:00:47]} d3 {[%emt 0:00:04]} 52. Bf3 {[%emt 0:00:51]} d2+ {[%emt 0:00:49]} 0-1

[Event "Baltic Zonal III Stage 2018"]
[Site "Liepaja"]
[Date "2018.07.10"]
[Round "2"]
[White "Rogule, Laura"]
[Black "Sirosh, Ilja"]
[Result "0-1"]
[ECO "C89"]
[WhiteElo "2320"]
[BlackElo "2339"]
[Annotator "NA"]
[PlyCount "56"]
[EventDate "2018.07.09"]
[EventType "swiss"]
[EventCountry "LAT"]
[SourceTitle "playchess.com"]
[Source "ChessBase"]
[SourceQuality "1"]
[TimeControl "5400+30"]

1. e4 {[%emt 0:00:00]} e5 {[%emt 0:00:00]} 2. Nf3 {[%emt 0:00:00]} Nc6 {[%emt 0:00:00]} 3. Bb5 {[%emt 0:00:00]} a6 {[%emt 0:00:00]} 4. Ba4 {[%emt 0:00:10]} Nf6 {[%emt 0:00:00]} 5. O-O {[%emt 0:00:18]} Be7 {[%emt 0:00:10]} 6. Re1 {[%emt 0:00:35]} b5 {[%emt 0:00:07]} 7. Bb3 {[%emt 0:00:10]} O-O {[%emt 0:00:10]} 8. c3 {[%emt 0:00:58]} d5 {[%emt 0:00:08]} 9. exd5 {[%emt 0:00:16]} Nxd5 {[%emt 0:00:06]} 10. Nxe5 {[%emt 0:00:50]} Nxe5 {[%emt 0:00:06]} 11. Rxe5 {[%emt 0:00:09]} c6 {[%emt 0:00:07]} 12. d3 {[%emt 0:01:35]} Bd6 {[%emt 0:00:38]} 13. Re1 {[%emt 0:01:51]} Bf5 {[%emt 0:00:13]} 14. Bxd5 {[%emt 0:17:53]} cxd5 {[%emt 0:00:33]} 15. Nd2 {[%emt 0:21:09]} Qh4 {[%emt 0:19:11]} 16. Nf1 {[%emt 0:07:35]} d4 {[%emt 0:02:15]} 17. Qf3 {[%emt 0:06:34]} Bg6 {[%emt 0:06:03]} 18. Bd2 {[%emt 0:07:18]} dxc3 {[%emt 0:34:40]} 19. bxc3 {[%emt 0:02:13]} Rac8 {[%emt 0:02:38]} 20. a4 {[%emt 0:06:51]} Rfd8 {[%emt 0:02:35]} 21. g3 {[%emt 0:05:23]} Qh3 {[%emt 0:00:23]} 22. axb5 {[%emt 0:00:37]} axb5 {[%emt 0:00:02]} 23. d4 {[%emt 0:05:14]} h6 {[%emt 0:02:40]} 24. Ra7 {[%emt 0:03:21]} Bf8 {[%emt 0:03:31]} 25. d5 {[%emt 0:08:32]} Bh5 {[%emt 0:13:14]} 26. Qd3 {[%emt 0:01:16]} Rc5 {[%emt 0:02:18]} 27. Ne3 {[%emt 0:01:50]} Bf3 {[%emt 0:00:27]} 28. Qf1 {[%emt 0:00:32]} Qh5 0-1